bitfinex/quotes_SOLUSD_20250819
["timestamp","ask_amount","ask_price","bid_price","bid_amount"]
[1755614147014,0.03,180.13,180.12,14.8482294]
[1755614147211,0.03,180.13,180.11,14.1382294]
[1755614147421,14.1682294,180.13,180.08,14.1382294]
[1755614147630,14.1382294,180.09,180.05,0.71]
[1755614147828,0.65,180.08,180.03,14.1382294]
[1755614148027,14.1382294,180.08,180.02,6.26468729]
[1755614148238,14.1382294,180.08,180.03,14.1382294]
[1755614148416,0.03,180.13,180.07,14.1382294]
[1755614148618,0.03,180.13,180.09,14.1382294]
[1755614148816,14.1682294,180.13,180.08,14.1382294]
[1755614149028,14.1382294,180.11,180.06,14.1382294]
[1755614149214,0.65,180.1,180.05,14.1382294]
[1755614149413,0.03,180.13,180.08,14.1382294]
[1755614149638,14.1682294,180.13,180.08,14.1382294]
[1755614149947,14.1682294,180.13,180.02,19.44221754]
[1755614150149,14.8182294,180.13,180.08,14.1382294]
[1755614150651,14.8182294,180.13,180.01,0.71]
[1755614150652,14.1382294,180.09,180.01,0.71]
[1755614150835,14.1382294,180.04,179.99,0.06]
[1755614151017,0.65,180.08,179.99,5.6157288]
[1755614151339,59.9182294,180.09,180.0,0.71]
[1755614151515,59.9182294,180.09,180.01,0.06]
[1755614151715,45.78,180.09,180.01,0.06]
[1755614151938,45.78,180.09,180.02,0.71]
[1755614152138,46.43,180.11,180.03,5.55462978]
[1755614152325,45.78,180.11,180.07,14.1382294]
[1755614152511,26.0,180.07,180.01,0.06]
[1755614152720,14.1382294,180.03,180.01,0.06]
[1755614153039,45.78,180.07,180.02,14.1382294]
[1755614153213,45.78,180.07,180.01,0.06]
[1755614153414,59.9182294,180.07,180.02,14.1382294]
[1755614153616,45.78,180.07,180.01,5.61510463]
[1755614153817,45.78,180.07,180.02,0.71]
[1755614154113,45.78,180.07,180.06,14.1382294]
[1755614154317,0.68,180.13,180.06,14.8482294]
[1755614154549,0.03,180.11,180.1,14.1382294]
[1755614154915,0.03,180.11,180.08,14.1382294]
[1755614155328,0.03,180.11,180.05,0.71]
[1755614155651,0.03,180.11,180.1,14.1382294]
[1755614156151,0.03,180.11,180.05,0.71]
[1755614156450,0.65,180.1,180.03,5.55462978]
[1755614156624,0.03,180.11,180.08,14.1382294]
[1755614157032,0.03,180.11,180.07,14.1382294]
[1755614157241,0.68,180.11,180.07,14.1382294]
[1755614157437,14.7882294,180.1,180.05,14.1382294]
[1755614157639,0.65,180.09,180.02,0.06]
[1755614157952,14.1382294,180.07,180.02,14.1982294]
[1755614158153,14.7882294,180.07,180.02,14.1982294]
[1755614158356,0.65,180.06,180.02,0.06]
[1755614158861,14.1382294,180.05,180.02,0.06]
[1755614159152,14.1382294,180.03,180.02,0.06]
[1755614159937,0.65,180.06,180.02,0.06]
[1755614160126,14.1382294,180.03,180.02,0.06]
[1755614160332,14.1382294,180.08,180.02,14.1982294]
[1755614160532,0.65,180.09,180.02,14.1982294]
[1755614160533,45.74,180.09,180.05,14.1382294]
[1755614160838,45.74,180.09,180.07,14.1382294]
[1755614161027,45.74,180.09,180.08,14.1382294]
[1755614161235,45.77,180.13,180.08,14.1382294]
[1755614161531,45.77,180.13,180.02,0.06]
[1755614161532,14.1382294,180.12,180.07,14.1382294]
[1755614161745,14.1382294,180.09,180.04,14.1382294]
[1755614162150,14.1382294,180.08,180.03,14.1382294]
[1755614162358,14.7882294,180.09,180.04,14.1382294]
[1755614162541,59.9082294,180.11,180.06,14.1382294]
[1755614162742,14.1382294,180.1,180.05,14.1382294]
[1755614162944,45.77,180.11,180.08,14.1382294]
[1755614163164,45.77,180.11,180.09,14.1382294]
[1755614163363,45.77,180.11,180.07,14.1382294]
[1755614163865,60.5582294,180.11,180.06,14.1382294]
[1755614164058,46.42,180.11,180.07,14.1382294]
[1755614164368,45.77,180.11,180.08,14.1382294]
[1755614165058,45.77,180.11,180.05,0.66]
[1755614165371,45.77,180.11,180.07,14.1382294]
[1755614165542,60.5582294,180.11,180.05,0.66]
[1755614165860,45.77,180.11,180.08,14.1382294]
[1755614166168,45.77,180.11,180.07,14.1382294]
[1755614166467,45.77,180.11,180.05,14.1382294]
[1755614166468,14.7882294,180.1,180.05,14.1382294]
[1755614166764,0.65,180.1,180.05,14.1382294]
[1755614167070,14.1382294,180.08,180.02,5.61485443]
[1755614167242,14.1382294,180.06,180.02,0.06]
[1755614167643,59.8582294,180.07,180.02,19.75311303]
[1755614167958,60.5082294,180.07,180.02,0.06]
[1755614168359,14.1382294,180.03,180.02,0.06]
[1755614168947,0.65,180.06,180.02,0.06]
[1755614169257,59.8582294,180.07,180.02,14.1982294]
[1755614169461,14.1382294,180.04,180.02,0.06]
[1755614169767,14.1382294,180.03,180.02,0.06]
[1755614170633,46.35,180.03,180.02,0.06]
[1755614171864,74.08382341,180.03,180.02,0.06]
[1755614172068,77.74197417,180.03,180.02,0.06]
[1755614172443,13.59559401,180.02,180.01,0.06]
[1755614172644,32.04197417,180.02,180.01,0.06]
[1755614173660,100.08382341,180.02,180.01,0.06]
[1755614174165,86.4882294,180.02,180.01,0.06]
[1755614174536,100.08382341,180.02,180.01,0.06]
[1755614176655,103.72300594,180.02,180.01,0.06]
[1755614177237,100.08382341,180.02,180.01,0.06]
[1755614178136,103.71898088,180.02,180.01,0.06]
[1755614178337,77.71898088,180.02,180.01,0.06]
[1755614178972,77.71898088,180.02,180.0,0.06]
[1755614178973,13.59559401,180.01,180.0,0.06]
[1755614179153,32.01898088,180.01,180.0,0.06]
[1755614179470,49.59559401,179.98,179.96,6.26]
[1755614179766,13.59559401,179.93,179.92,0.06]
[1755614179969,26.0,179.9,179.89,3.32]
[1755614180140,99.41382341,179.9,179.89,3.32]
[1755614180341,100.06382341,179.9,179.89,3.32]
[1755614180570,13.59559401,179.89,179.74,13.90854991]
[1755614180877,13.59559401,179.89,179.57,40.06]
[1755614180878,59.8182294,179.88,179.82,14.7982294]
[1755614181242,59.8182294,179.88,179.76,13.90706825]
[1755614181243,45.68,179.88,179.87,17.03440599]
[1755614181441,14.1382294,179.91,179.87,17.03440599]
[1755614181746,14.1382294,179.88,179.87,16.37440599]
[1755614182170,26.0,179.9,179.87,16.37440599]
[1755614182369,14.1382294,179.88,179.87,16.37440599]
[1755614183060,28.38382341,179.88,179.87,16.37440599]
[1755614184262,13.59559401,179.88,179.87,16.37440599]
[1755614184472,99.39382341,179.88,179.87,16.37440599]
[1755614184677,74.04382341,179.88,179.87,16.37440599]
[1755614184876,39.59559401,179.84,179.81,0.06]
[1755614185066,14.1382294,179.82,179.81,0.06]
[1755614185455,27.73382341,179.82,179.81,0.06]
[1755614185651,54.38382341,179.82,179.81,0.06]
[1755614186458,28.38382341,179.82,179.81,0.06]
[1755614187387,13.59559401,179.77,179.7,0.66]
[1755614187556,14.1382294,179.71,179.66,0.66]
[1755614187745,45.66,179.7,179.66,0.66]
[1755614188149,37.34599761,179.89,179.81,0.06]
[1755614188475,53.73382341,179.82,179.81,0.06]
[1755614188978,46.31,179.84,179.81,0.06]
[1755614188979,45.66,179.84,179.81,0.06]
[1755614189177,45.66,179.83,179.81,0.72]
[1755614189421,45.66,179.83,179.82,0.66]
[1755614189583,54.1982294,179.85,179.82,0.66]
[1755614189584,45.66,179.85,179.82,0.66]
[1755614189876,45.66,179.89,179.84,14.1382294]
[1755614190084,14.1382294,179.88,179.85,0.66]
[1755614190285,14.1382294,179.86,179.82,0.66]
[1755614190590,14.1382294,179.83,179.81,0.06]
[1755614190751,26.0,179.87,179.81,0.06]
[1755614190752,45.64,179.82,179.81,0.06]
[1755614190954,14.1382294,179.88,179.81,0.06]
[1755614191179,45.64,179.87,179.84,14.1382294]
[1755614191348,45.64,179.88,179.86,14.1382294]
[1755614191550,45.64,179.88,179.87,0.66]
[1755614191746,0.65,179.95,179.87,14.7982294]
[1755614191950,14.1382294,179.92,179.88,0.66]
[1755614192299,45.66,179.91,179.88,0.66]
[1755614192447,14.1382294,179.94,179.9,14.1382294]
[1755614192650,45.66,179.93,179.91,0.66]
[1755614192866,45.66,179.93,179.82,26.0]
[1755614192867,45.66,179.93,179.9,14.1382294]
[1755614193064,45.66,179.96,179.92,14.8582294]
[1755614193290,45.64,179.99,179.95,14.1382294]
[1755614193487,45.64,179.99,179.94,14.1382294]
[1755614193488,59.7782294,179.99,179.94,14.1382294]
[1755614193690,14.1382294,179.97,179.91,0.72]
[1755614193877,45.64,179.96,179.91,0.72]
[1755614194078,14.1382294,179.94,179.91,0.72]
[1755614194300,45.64,179.96,179.93,14.1382294]
[1755614194499,45.64,179.96,179.94,14.8582294]
[1755614194692,59.7782294,179.96,179.9,0.72]
[1755614194997,45.64,179.96,179.92,14.1382294]
[1755614195193,45.64,179.96,179.93,0.72]
[1755614195775,14.1382294,179.95,179.9,0.72]
[1755614196074,14.1382294,179.93,179.9,0.72]
[1755614196295,59.7782294,179.93,179.9,0.72]
[1755614196503,14.1382294,179.92,179.87,14.1382294]
[1755614196801,14.1382294,179.91,179.87,0.72]
[1755614197004,59.7582294,179.9,179.82,5.56108132]
[1755614197207,59.7582294,179.9,179.81,0.06]
[1755614197208,26.0,179.88,179.81,0.06]
[1755614197411,14.1382294,179.85,179.81,0.06]
[1755614197578,45.62,179.84,179.81,14.1982294]
[1755614197782,45.62,179.85,179.83,14.1382294]
[1755614197977,45.62,179.85,179.84,14.8582294]
[1755614198193,71.62,179.88,179.84,0.72]
[1755614198594,71.62,179.88,179.81,0.78]
[1755614198806,14.1382294,179.85,179.81,0.78]
[1755614199116,45.6,179.84,179.82,14.1382294]
[1755614199431,45.6,179.85,179.81,0.06]
[1755614199576,26.0,179.9,179.84,14.1382294]
[1755614199772,45.6,179.89,179.85,14.1382294]
[1755614199975,45.6,179.89,179.85,14.8582294]
[1755614200502,45.6,179.89,179.86,14.8582294]
[1755614200715,45.6,179.89,179.87,0.72]
[1755614201611,45.6,179.89,179.84,0.72]
[1755614201812,14.1382294,179.88,179.84,0.72]
[1755614202023,45.6,179.89,179.84,0.72]
[1755614202318,59.7382294,179.89,179.84,0.72]
[1755614202513,45.6,179.89,179.85,0.06]
[1755614202720,59.7382294,179.89,179.85,0.06]
[1755614202886,14.1382294,179.86,179.85,0.06]
[1755614203086,45.58,179.86,179.85,0.06]
[1755614203399,132.0,179.99,179.85,0.06]
[1755614203400,0.68,179.91,179.85,0.06]
[1755614203600,14.1382294,179.86,179.85,0.06]
[1755614203815,60.3982294,179.86,179.85,0.06]
[1755614204131,86.3982294,179.86,179.85,0.06]
[1755614204451,85.7182294,179.86,179.85,0.06]
[1755614204601,45.58,179.86,179.85,0.78]
[1755614204799,0.68,179.94,179.85,0.78]
[1755614205110,45.56,179.93,179.85,6.34007528]
[1755614205306,45.56,179.93,179.9,14.1382294]
[1755614205506,14.1382294,179.98,179.92,14.1382294]
[1755614205708,45.56,179.97,179.93,14.1382294]
[1755614205912,45.56,179.97,179.85,19.52054789]
[1755614205913,45.56,179.97,179.95,14.1382294]
[1755614206101,45.56,179.97,179.94,14.8582294]
[1755614206416,0.03,179.96,179.93,14.1382294]
[1755614206817,0.03,179.96,179.93,0.72]
[1755614207020,0.03,179.96,179.93,14.8582294]
[1755614207195,14.1382294,179.95,179.9,14.8582294]
[1755614207400,0.03,179.96,179.9,14.8582294]
[1755614207795,0.03,179.96,179.94,14.1382294]
[1755614208008,0.03,179.96,179.95,14.1382294]
[1755614208217,0.03,179.96,179.88,13.59559401]
[1755614208413,0.03,179.96,179.93,14.1382294]
[1755614208732,0.03,179.96,179.9,0.72]
[1755614208930,0.03,179.96,179.92,14.1382294]
[1755614209118,14.1382294,179.95,179.9,0.72]
[1755614209444,14.1382294,179.95,179.9,14.8582294]
[1755614209735,14.1382294,179.95,179.9,0.72]
[1755614209935,14.1382294,179.94,179.89,14.1382294]
[1755614210135,14.1382294,179.93,179.88,14.1382294]
[1755614210506,14.1382294,179.92,179.87,14.1382294]
[1755614210732,45.54,179.93,179.9,14.1382294]
[1755614210926,45.54,179.93,179.89,14.1382294]
[1755614211129,14.1382294,179.91,179.86,14.8582294]
[1755614211642,14.1382294,179.9,179.85,0.06]
[1755614211822,14.1382294,179.9,179.85,14.1982294]
[1755614212013,14.1382294,179.9,179.85,14.9182294]
[1755614212330,14.1382294,179.9,179.85,14.1982294]
[1755614212721,14.1382294,179.91,179.86,14.1382294]
[1755614212918,0.68,179.91,179.85,0.06]
[1755614213114,14.1382294,179.87,179.85,0.06]
[1755614213638,14.1382294,179.86,179.85,0.06]
[1755614213839,14.8182294,179.86,179.85,0.06]
[1755614214047,14.1382294,179.87,179.85,0.06]
[1755614214342,45.5,179.89,179.85,0.06]
[1755614214634,14.8182294,179.86,179.85,0.06]
[1755614216614,14.1382294,179.86,179.85,0.06]
[1755614217038,40.1382294,179.86,179.85,0.06]
[1755614217422,14.1382294,179.86,179.85,0.06]
[1755614217721,45.5,179.89,179.85,0.06]
[1755614218025,14.1382294,179.88,179.85,0.78]
[1755614218229,14.1382294,179.86,179.85,0.06]
[1755614218426,71.5,179.89,179.85,0.06]
[1755614218629,14.1382294,179.88,179.85,0.06]
[1755614218930,14.1382294,179.87,179.85,0.78]
[1755614219116,14.1382294,179.87,179.85,0.06]
[1755614219317,71.5,179.89,179.85,0.06]
[1755614219541,14.1382294,179.86,179.85,0.06]
[1755614220544,4.49874062,179.95,179.85,0.06]
[1755614220754,13.62559401,179.96,179.85,0.78]
[1755614220913,14.1382294,179.94,179.85,6.34007463]
[1755614221115,0.03,179.96,179.91,14.1382294]
[1755614221335,14.1682294,179.96,179.91,14.1382294]
[1755614221545,14.1682294,179.96,179.91,0.72]
[1755614221744,0.03,179.96,179.92,14.8582294]
[1755614221948,0.03,179.96,179.93,14.8582294]
[1755614222333,0.03,179.96,179.94,0.72]
[1755614222717,0.03,179.96,179.95,14.8582294]
[1755614222921,0.03,179.98,179.95,14.8582294]
[1755614223137,0.03,179.98,179.97,14.1382294]
[1755614223549,0.03,179.98,179.97,14.8382294]
[1755614224054,0.03,179.98,179.94,6.25734197]
[1755614224354,0.03,179.98,179.96,0.7]
[1755614224662,0.03,179.98,179.97,14.1382294]
[1755614224823,0.03,180.02,179.99,14.1382294]
[1755614225022,0.03,180.02,180.0,0.7]
[1755614225222,0.03,180.02,180.0,14.8382294]
[1755614225450,0.03,180.02,179.94,2.226738]
[1755614225451,14.1682294,180.02,179.96,0.7]
[1755614225639,0.03,180.02,180.01,14.1382294]
[1755614225849,0.03,180.02,180.01,14.8382294]
[1755614227137,0.03,180.02,180.01,20.39347633]
[1755614227657,0.03,180.02,180.01,0.7]
[1755614227839,0.03,180.02,179.99,14.1382294]
[1755614228358,0.03,180.02,180.0,0.7]
[1755614228852,0.03,180.02,180.01,14.1382294]
[1755614229025,0.03,180.02,179.98,0.7]
[1755614229223,0.03,180.02,180.01,14.1382294]
[1755614229737,0.03,180.04,180.01,14.8382294]
[1755614230045,0.03,180.04,180.03,14.1382294]
[1755614230231,0.03,180.04,179.97,26.0]
[1755614230433,0.03,180.04,180.02,14.1382294]
[1755614230628,0.03,180.04,180.03,14.1382294]
[1755614231040,0.03,180.04,180.03,14.8382294]
[1755614231240,0.03,180.04,180.03,20.39285918]
[1755614233560,0.03,180.04,180.03,14.8382294]
[1755614234363,0.03,180.04,180.03,14.1382294]
[1755614234564,0.03,180.04,180.01,14.1382294]
[1755614234872,14.1682294,180.04,179.99,14.1382294]
[1755614235174,0.71,180.03,179.96,0.7]
[1755614235369,0.03,180.04,180.02,14.1382294]
[1755614235572,0.03,180.04,180.03,14.1382294]
[1755614236170,0.03,180.04,180.03,14.8382294]
[1755614236344,44.71,180.12,180.03,14.8382294]
[1755614236547,14.1382294,180.11,180.06,14.1382294]
[1755614236762,44.71,180.12,180.05,14.1382294]
[1755614237074,44.71,180.12,180.04,0.7]
[1755614237277,14.1382294,180.11,180.07,14.1382294]
[1755614237581,14.1382294,180.1,180.05,14.1382294]
[1755614237783,14.1382294,180.1,179.98,76.81745152]
[1755614237784,14.1382294,180.07,179.99,5.55586421]
[1755614238087,14.1382294,180.07,180.02,14.1382294]
[1755614238245,26.0,180.09,180.02,14.1382294]
[1755614238446,0.71,180.09,180.02,14.1382294]
[1755614238658,45.42,180.12,180.05,14.1382294]
[1755614238873,44.71,180.12,180.09,14.1382294]
[1755614239466,14.1682294,180.13,180.05,5.55401277]
[1755614239467,0.03,180.13,180.11,14.1382294]
[1755614239659,0.03,180.13,180.12,14.1382294]
[1755614240575,0.03,180.13,180.11,14.1382294]
[1755614240961,0.03,180.13,180.12,14.1382294]
[1755614241160,0.03,180.13,180.11,14.1382294]
[1755614242263,0.03,180.13,180.08,6.25303348]
[1755614242462,0.03,180.13,180.12,14.1382294]
[1755614243072,0.03,180.13,180.09,0.7]
[1755614243257,0.03,180.13,180.11,14.1382294]
[1755614243458,0.03,180.13,180.12,14.1382294]
[1755614243680,0.03,180.13,180.07,0.7]
[1755614243878,0.03,180.13,180.09,14.1382294]
[1755614244182,14.1382294,180.12,180.04,6.25428221]
[1755614244367,14.1682294,180.13,180.08,14.1382294]
[1755614244568,0.03,180.13,180.1,14.1382294]
[1755614245259,0.03,180.13,180.12,14.1382294]
[1755614245461,0.03,180.13,180.05,13.59559401]
[1755614245462,0.03,180.13,180.07,5.55331934]
[1755614245790,14.8482294,180.12,180.07,14.1382294]
[1755614245959,0.03,180.13,180.09,14.1382294]
[1755614246387,0.03,180.13,180.09,14.16301739]
[1755614246557,0.03,180.13,180.12,14.16301739]
[1755614246991,0.03,180.13,180.12,9.58798379]
[1755614247494,0.03,180.13,180.1,8.88798379]
[1755614247695,8.91798379,180.13,180.08,8.88798379]
[1755614247887,0.03,180.13,180.1,8.88798379]
[1755614248063,0.03,180.13,180.09,8.88798379]
[1755614248790,0.03,180.13,180.1,8.88798379]
[1755614248986,8.91798379,180.13,180.09,8.88798379]
[1755614249193,0.03,180.13,180.09,8.88798379]
[1755614249485,0.03,180.13,180.1,8.88798379]
[1755614249689,0.03,180.13,180.12,8.88798379]
[1755614250190,0.03,180.13,180.12,9.58798379]
[1755614250873,0.03,180.13,180.11,8.88798379]
[1755614251077,0.03,180.13,180.1,8.88798379]
[1755614251469,0.03,180.13,180.11,8.88798379]
[1755614251759,0.03,180.13,180.12,8.88798379]
[1755614251962,0.03,180.13,180.12,9.58798379]
[1755614252177,0.03,180.13,180.11,8.88798379]
[1755614252371,0.03,180.13,180.03,2.225622]
[1755614252581,0.03,180.13,180.09,8.88798379]
[1755614252886,0.03,180.13,180.06,0.7]
[1755614253302,8.91798379,180.13,180.08,8.88798379]
[1755614253489,0.03,180.13,180.09,8.88798379]
[1755614253826,0.03,180.13,180.09,9.60798379]
[1755614254171,0.03,180.13,180.09,8.88798379]
[1755614254409,0.03,180.13,180.09,9.60798379]
[1755614254894,8.91798379,180.13,180.09,8.88798379]
[1755614255084,0.03,180.13,180.07,8.88798379]
[1755614255300,0.03,180.13,180.08,8.88798379]
[1755614255498,8.88798379,180.09,180.05,8.88798379]
[1755614255687,8.88798379,180.09,180.02,0.72]
[1755614256011,8.88798379,180.06,180.01,8.88798379]
[1755614256314,8.88798379,180.04,179.99,0.72]
[1755614256477,26.0,180.08,179.99,9.60798379]
[1755614256676,26.0,180.08,180.0,8.88798379]
[1755614256915,8.88798379,180.03,179.99,0.72]
[1755614257499,8.88798379,180.03,179.98,8.94798379]
[1755614257500,8.88798379,180.0,179.98,0.06]
[1755614257813,8.88798379,179.99,179.98,0.06]
[1755614258681,26.0,180.01,179.98,0.06]
[1755614258907,8.88798379,179.99,179.98,0.06]
[1755614259390,9.60798379,179.99,179.98,0.06]
[1755614261386,0.72,179.99,179.98,0.06]
[1755614261601,9.60798379,179.99,179.98,0.06]
[1755614262200,49.2035778,179.99,179.98,0.06]
[1755614262883,23.2035778,179.99,179.98,0.06]
[1755614263390,68.3435778,179.99,179.98,0.06]
[1755614264202,0.72,180.02,179.98,0.06]
[1755614264408,34.88798379,179.99,179.98,0.06]
[1755614264612,80.02798379,179.99,179.98,0.06]
[1755614264813,45.14,179.99,179.98,0.06]
[1755614264992,54.02798379,179.99,179.98,0.06]
[1755614266113,45.14,179.99,179.98,0.06]
[1755614266317,0.72,180.07,179.98,9.66798379]
[1755614266613,8.88798379,179.99,179.98,0.06]
[1755614266828,45.12,180.01,179.98,0.06]
[1755614266984,8.88798379,180.0,179.98,0.06]
[1755614267188,54.00798379,180.01,179.99,0.72]
[1755614267779,8.88798379,180.0,179.98,0.06]
[1755614268004,34.88798379,179.99,179.98,0.06]
[1755614268597,35.60798379,179.99,179.98,0.06]
[1755614268799,26.0,179.99,179.98,0.06]
[1755614269027,0.72,180.06,179.98,0.78]
[1755614269321,54.96195748,180.09,179.99,8.88798379]
[1755614269322,45.1,180.05,179.99,8.88798379]
[1755614269619,53.98798379,180.04,180.0,0.72]
[1755614269829,8.88798379,180.01,179.98,0.06]
[1755614270004,8.88798379,180.0,179.98,0.06]
[1755614270330,71.1,180.04,179.98,0.06]
[1755614270500,8.88798379,180.03,179.99,0.72]
[1755614270812,8.88798379,180.03,180.0,0.72]
[1755614271017,8.88798379,180.01,179.98,0.06]
[1755614271218,8.88798379,179.99,179.98,0.06]
[1755614271397,53.98798379,179.99,179.98,0.06]
[1755614271723,8.88798379,180.0,179.98,0.06]
[1755614272052,8.88798379,180.02,179.98,8.94798379]
[1755614272323,8.88798379,180.02,179.98,0.78]
[1755614272633,0.92,180.14,180.01,8.88798379]
[1755614272800,8.88798379,180.1,180.05,8.88798379]
[1755614273125,45.08,180.12,180.06,9.60798379]
[1755614273308,8.88798379,180.11,180.06,0.72]
[1755614273699,45.08,180.12,180.07,9.60798379]
[1755614274099,53.96798379,180.12,180.07,9.60798379]
[1755614274819,8.88798379,180.1,180.05,8.88798379]
[1755614275144,9.60798379,180.09,180.04,8.88798379]
[1755614275695,8.88798379,180.09,180.01,0.72]
[1755614275913,8.88798379,180.08,180.03,8.88798379]
[1755614276119,45.08,180.07,180.04,0.72]
[1755614277519,45.08,180.07,180.05,11.73001894]
[1755614277726,45.08,180.07,180.06,0.72]
[1755614278145,40.51559401,180.14,180.06,0.72]
[1755614278146,0.2,180.14,180.06,11.73001894]
[1755614278327,45.09,180.13,180.09,11.01001894]
[1755614278526,45.09,180.13,180.07,0.72]
[1755614278735,45.09,180.13,180.09,11.01001894]
[1755614279141,45.09,180.13,180.09,11.73001894]
[1755614279451,45.09,180.13,180.09,0.72]
[1755614279758,0.03,180.13,180.1,0.72]
[1755614279943,0.03,180.13,180.1,11.73001894]
[1755614280326,0.03,180.13,180.11,11.73001894]
[1755614280753,0.03,180.13,180.12,11.73001894]
[1755614281119,0.2,180.14,180.12,11.73001894]
[1755614281424,0.92,180.3,180.18,26.0]
[1755614281628,56.23001894,180.3,180.24,11.01001894]
[1755614281942,56.23001894,180.3,180.23,0.72]
[1755614282150,45.22,180.3,180.24,11.01001894]
[1755614282455,11.01001894,180.28,180.23,0.72]
[1755614282620,11.01001894,180.28,180.19,5.54969754]
[1755614282822,0.2,180.3,180.27,11.01001894]
[1755614283039,0.2,180.3,180.21,13.59559401]
[1755614283241,0.2,180.3,180.28,0.72]
[1755614283431,11.71001894,180.29,180.19,5.54969754]
[1755614283632,26.2,180.3,180.22,13.23353794]
[1755614283865,0.2,180.3,180.26,11.01001894]
[1755614284038,0.2,180.3,180.29,11.01001894]
[1755614284564,0.2,180.3,180.28,11.01001894]
[1755614284863,11.21001894,180.3,180.24,0.72]
[1755614285028,11.21001894,180.3,180.25,11.01001894]
[1755614285232,0.2,180.3,180.26,0.72]
[1755614285448,0.2,180.3,180.28,11.01001894]
[1755614285647,0.2,180.3,180.27,0.72]
[1755614285848,0.2,180.3,180.28,0.72]
[1755614286049,11.21001894,180.3,180.24,11.73001894]
[1755614286261,11.01001894,180.29,180.25,0.72]
[1755614286446,0.2,180.3,180.27,11.01001894]
[1755614286626,0.2,180.3,180.26,0.72]
[1755614286834,0.9,180.3,180.24,11.01001894]
[1755614287168,0.2,180.3,180.25,11.01001894]
[1755614287452,0.2,180.3,180.26,11.73001894]
[1755614287623,11.21001894,180.3,180.24,13.23390894]
[1755614287828,0.2,180.3,180.25,0.72]
[1755614288029,0.2,180.3,180.26,0.72]
[1755614288360,0.2,180.3,180.27,0.72]
[1755614288737,0.2,180.3,180.24,7.77202654]
[1755614288738,11.01001894,180.29,180.24,2.94389]
[1755614288937,11.01001894,180.28,180.21,0.72]
[1755614289267,11.01001894,180.26,180.21,22.74003694]
[1755614289445,11.01001894,180.25,180.2,11.01001894]
[1755614289771,11.01001894,180.24,180.19,11.010018]
[1755614289970,11.01001894,180.23,180.19,11.070018]
[1755614290143,11.01001894,180.23,180.19,0.06]
[1755614290636,44.94,180.27,180.19,0.78]
[1755614290834,11.01001894,180.23,180.19,0.78]
[1755614291037,11.01001894,180.22,180.19,0.06]
[1755614291672,11.01001894,180.2,180.19,0.06]
[1755614292039,11.71001894,180.2,180.19,0.06]
[1755614294372,11.01001894,180.2,180.19,0.06]
[1755614295571,44.9,180.21,180.19,0.06]
[1755614295758,55.91001894,180.21,180.19,0.06]
[1755614296644,44.9,180.21,180.19,0.06]
[1755614296851,11.01001894,180.24,180.2,0.72]
[1755614297234,55.89001894,180.25,180.21,0.72]
[1755614297671,11.01001894,180.24,180.21,0.72]
[1755614297834,11.01001894,180.24,180.19,11.07001894]
[1755614298235,211.23,180.34,180.21,11.01001894]
[1755614298236,44.86,180.25,180.21,11.01001894]
[1755614298461,44.86,180.25,180.23,11.01001894]
[1755614298661,44.86,180.25,180.22,11.01001894]
[1755614299553,44.86,180.25,180.23,11.73001894]
[1755614299761,44.86,180.25,180.22,11.01001894]
[1755614300154,44.86,180.25,180.21,11.01001894]
[1755614300359,44.86,180.25,180.21,11.73001894]
[1755614300549,11.01001894,180.27,180.22,11.01001894]
[1755614300738,44.84,180.27,180.22,0.72]